bitfinex/quotes_BTCUSD_20251102
["timestamp","ask_amount","ask_price","bid_price","bid_amount"]
[1762110214718,1.1242843,110460.0,110450.0,0.03025031]
[1762110214923,1.00998985,110460.0,110450.0,0.03025031]
[1762110215106,0.66468814,110460.0,110450.0,0.03025031]
[1762110216514,0.66473101,110460.0,110450.0,0.03025031]
[1762110216917,0.64025557,110460.0,110450.0,0.03025031]
[1762110218056,0.66473101,110460.0,110450.0,0.03025031]
[1762110219508,0.75455002,110460.0,110450.0,0.03025031]
[1762110219861,0.73007458,110460.0,110450.0,0.03025031]
[1762110220260,0.64025557,110460.0,110450.0,0.03025031]
[1762110220864,0.66473101,110460.0,110450.0,0.03025031]
[1762110222132,0.64025557,110460.0,110450.0,0.03025031]
[1762110222637,0.66473101,110460.0,110450.0,0.03025031]
[1762110223192,0.66473101,110460.0,110450.0,0.21132772]
[1762110223818,0.66473101,110460.0,110450.0,0.03025031]
[1762110224979,0.64025557,110460.0,110450.0,0.03025031]
[1762110226598,0.64025557,110460.0,110450.0,0.23928772]
[1762110229918,0.45919456,110460.0,110450.0,0.23928772]
[1762110230350,0.08937454,110460.0,110450.0,0.23928772]
[1762110233794,0.08937454,110460.0,110450.0,0.26406772]
[1762110240455,0.05319226,110460.0,110450.0,0.26406772]
[1762110241835,0.23425327,110460.0,110450.0,0.23928772]
[1762110242021,0.05319226,110460.0,110450.0,0.23928772]
[1762110243550,0.23425327,110460.0,110450.0,0.23928772]
[1762110243941,0.60407329,110460.0,110450.0,0.21132772]
[1762110244152,0.62854873,110460.0,110450.0,0.21132772]
[1762110245000,0.60407329,110460.0,110450.0,0.21132772]
[1762110245301,0.62854873,110460.0,110450.0,0.21132772]
[1762110246029,0.75455002,110460.0,110450.0,0.03025031]
[1762110246255,1.09455002,110460.0,110450.0,0.03025031]
[1762110246451,1.12721871,110460.0,110450.0,0.03025031]
[1762110248197,1.09455002,110460.0,110450.0,0.03025031]
[1762110249245,1.09455002,110460.0,110450.0,0.21132772]
[1762110249444,1.09455002,110460.0,110450.0,0.03025031]
[1762110257588,1.09455002,110460.0,110450.0,0.21132772]
[1762110258234,1.09455002,110460.0,110450.0,0.03025031]
[1762110258684,1.09455002,110460.0,110450.0,0.21132772]
[1762110259323,0.82367,110460.0,110450.0,0.21132772]
[1762110259544,0.63491099,110460.0,110450.0,0.23975772]
[1762110259770,0.63491099,110460.0,110450.0,0.26290772]
[1762110260212,0.63491099,110460.0,110450.0,0.23975772]
[1762110260887,0.45384998,110460.0,110450.0,0.23975772]
[1762110261357,0.63491099,110460.0,110450.0,0.23975772]
[1762110261793,0.63491099,110460.0,110450.0,0.26290772]
[1762110262252,1.47256329,110460.0,110450.0,0.03025031]
[1762110262475,1.53854417,110460.0,110450.0,0.03025031]
[1762110262683,1.47256329,110460.0,110450.0,0.03025031]
[1762110262929,1.50587598,110460.0,110450.0,0.03025031]
[1762110263181,1.50387598,110460.0,110450.0,0.03025031]
[1762110263585,1.50887598,110460.0,110450.0,0.03025031]
[1762110264214,1.51212174,110460.0,110450.0,0.03025031]
[1762110264416,1.53809747,110460.0,110450.0,0.03025031]
[1762110265164,1.57068948,110460.0,110450.0,0.03025031]
[1762110266414,1.53809747,110460.0,110450.0,0.03025031]
[1762110266625,1.4890992,110460.0,110450.0,0.03025031]
[1762110266839,1.55426727,110460.0,110450.0,0.03025031]
[1762110267257,1.4890992,110460.0,110450.0,0.03025031]
[1762110268724,1.53795141,110460.0,110450.0,0.03025031]
[1762110278436,1.90833843,110460.0,110450.0,0.03025031]
[1762110284200,1.85948622,110460.0,110450.0,0.03025031]
[1762110285171,1.85946751,110460.0,110450.0,0.03025031]
[1762110286434,1.90831188,110460.0,110450.0,0.03025031]
[1762110289382,1.85946751,110460.0,110450.0,0.03025031]
[1762110290603,1.92463558,110460.0,110450.0,0.03025031]
[1762110292258,0.21725969,110450.0,110440.0,0.00060076]
[1762110292461,1.21407672,110450.0,110440.0,0.00060076]
[1762110292887,1.24129317,110450.0,110440.0,0.00060076]
[1762110293431,1.24729317,110450.0,110440.0,0.00060076]
[1762110293629,1.25029317,110450.0,110440.0,0.01160076]
[1762110296431,0.51027513,110450.0,110440.0,0.01160076]
[1762110296639,0.88028415,110450.0,110440.0,0.01160076]
[1762110298638,0.91292011,110450.0,110440.0,0.01160076]
[1762110299211,0.91291992,110450.0,110440.0,0.01160076]
[1762110302717,0.45309189,110450.0,110440.0,0.01160076]
[1762110303047,0.82310091,110450.0,110440.0,0.01160076]
[1762110303279,0.77417954,110450.0,110440.0,0.01160076]
[1762110303702,0.82310091,110450.0,110440.0,0.01160076]
[1762110304656,0.40417052,110450.0,110440.0,0.01160076]
[1762110304859,0.86399855,110450.0,110440.0,0.01160076]
[1762110306125,0.86399361,110450.0,110440.0,0.01160076]
[1762110308580,0.86399361,110450.0,110440.0,0.19269456]
[1762110311299,0.86399361,110450.0,110440.0,0.01160076]
[1762110311731,0.83677716,110450.0,110440.0,0.01160076]
[1762110313049,1.20678618,110450.0,110440.0,0.01160076]
[1762110313276,1.25570755,110450.0,110440.0,0.01160076]
[1762110313975,1.27993642,110450.0,110440.0,0.01160076]
[1762110315639,1.24730065,110450.0,110440.0,0.01160076]
[1762110315806,1.27991802,110450.0,110440.0,0.01160076]
[1762110317425,1.25568915,110450.0,110440.0,0.01160076]
[1762110318852,1.25572159,110450.0,110440.0,0.01160076]
[1762110328225,1.22310422,110450.0,110440.0,0.01160076]
[1762110340420,0.85307206,110450.0,110440.0,0.01160076]
[1762110348641,0.88571011,110450.0,110440.0,0.01160076]
[1762110350145,0.88571938,110450.0,110440.0,0.01160076]
[1762110356467,0.85308133,110450.0,110440.0,0.01160076]
[1762110358680,0.48309545,110450.0,110440.0,0.01160076]
[1762110358890,0.85308133,110450.0,110440.0,0.01160076]
[1762110359106,0.88571629,110450.0,110440.0,0.01160076]
[1762110366487,0.85308133,110450.0,110440.0,0.01160076]
[1762110371229,0.88571558,110450.0,110440.0,0.01160076]
[1762110371786,0.91293158,110450.0,110440.0,0.01160076]
[1762110381406,0.82311257,110450.0,110440.0,0.01160076]
[1762110389261,0.80611384,110450.0,110440.0,0.01160076]
[1762110390003,0.82311046,110450.0,110440.0,0.01160076]
[1762110393584,0.79047621,110450.0,110440.0,0.01160076]
[1762110393816,0.82311017,110450.0,110440.0,0.01160076]
[1762110394049,0.91292918,110450.0,110440.0,0.01160076]
[1762110395772,0.88029522,110450.0,110440.0,0.01160076]
[1762110397004,0.51030934,110450.0,110440.0,0.01160076]
[1762110397203,0.88029522,110450.0,110440.0,0.01160076]
[1762110397646,0.91292913,110450.0,110440.0,0.01160076]
[1762110402322,0.89593251,110450.0,110440.0,0.01160076]
[1762110402534,0.89588045,110450.0,110440.0,0.01160076]
[1762110417337,1.25017803,110450.0,110440.0,0.01160076]
[1762110421210,1.2744069,110450.0,110440.0,0.01160076]
[1762110423621,1.25017803,110450.0,110440.0,0.01160076]
[1762110430402,1.62011185,110450.0,110440.0,0.01160076]
[1762110430600,1.93541935,110450.0,110440.0,0.01160076]
[1762110430802,0.18114301,110410.0,110400.0,0.22527739]
[1762110431082,0.57064805,110410.0,110400.0,0.22527739]
[1762110431203,0.55107683,110410.0,110400.0,0.24175739]
[1762110431864,0.58725911,110410.0,110400.0,0.02874]
[1762110432069,0.18115942,110400.0,110390.0,0.19297165]
[1762110432272,0.92102706,110400.0,110390.0,0.21577165]
[1762110432474,0.36993382,110400.0,110390.0,0.23225165]
[1762110432680,0.55109324,110400.0,110390.0,0.23225165]
[1762110432906,0.36993382,110400.0,110390.0,0.23225165]
[1762110433257,0.55109324,110400.0,110390.0,0.23225165]
[1762110433454,0.36993382,110400.0,110390.0,0.23225165]
[1762110434075,0.37093382,110400.0,110390.0,0.23925165]
[1762110434291,0.55209324,110400.0,110390.0,0.23925165]
[1762110434507,0.89209324,110400.0,110390.0,0.03728]
[1762110434724,1.37531649,110400.0,110390.0,0.009]
[1762110435566,1.3167449,110400.0,110390.0,0.002]
[1762110435784,1.34120605,110400.0,110390.0,0.002]
[1762110435954,1.34120605,110400.0,110360.0,0.0118]
[1762110435955,0.18120866,110370.0,110360.0,0.0118]
[1762110436167,0.18120866,110370.0,110360.0,0.21788508]
[1762110436168,0.57379356,110370.0,110360.0,0.21788508]
[1762110436366,0.55114248,110370.0,110360.0,0.23405508]
[1762110436611,0.55114248,110370.0,110360.0,0.2776663]
[1762110436816,0.03618228,110380.0,110370.0,0.18120866]
[1762110436992,0.58730834,110380.0,110370.0,0.23368866]
[1762110437196,0.42566545,110380.0,110370.0,0.23368866]
[1762110437373,0.58735663,110380.0,110370.0,0.23368866]
[1762110437585,0.21742281,110380.0,110370.0,0.23368866]
[1762110438265,0.58735663,110380.0,110370.0,0.23368866]
[1762110438466,0.40616439,110380.0,110370.0,0.23368866]
[1762110438675,0.40616439,110380.0,110370.0,0.23468866]
[1762110438919,0.40616439,110380.0,110370.0,0.28182116]
[1762110439122,0.36998211,110380.0,110370.0,0.28182116]
[1762110440577,4.829e-05,110380.0,110370.0,0.28182116]
[1762110440737,0.36998211,110380.0,110370.0,0.28182116]
[1762110442296,0.36998211,110380.0,110370.0,0.23468866]
[1762110442859,0.36998211,110380.0,110370.0,0.23622998]
[1762110444165,0.55117435,110380.0,110370.0,0.23622998]
[1762110445987,0.36998211,110380.0,110370.0,0.23622998]
[1762110447367,0.55117435,110380.0,110370.0,0.23622998]
[1762110447816,0.55117435,110380.0,110370.0,0.21136998]
[1762110449622,4.829e-05,110380.0,110370.0,0.21136998]
[1762110449957,4.829e-05,110380.0,110370.0,0.68245608]
[1762110461304,0.01950405,110380.0,110370.0,0.68245608]
[1762110462347,0.01950405,110380.0,110370.0,0.31252226]
[1762110465236,0.01950405,110380.0,110370.0,0.68273335]
[1762110468147,0.01950405,110380.0,110370.0,0.31252226]
[1762110476446,0.01950405,110380.0,110370.0,0.68273335]
[1762110476651,4.829e-05,110380.0,110370.0,0.68273335]
[1762110477919,4.829e-05,110380.0,110370.0,0.68673335]
[1762110478332,4.829e-05,110380.0,110370.0,0.68573335]
[1762110478667,4.829e-05,110380.0,110370.0,0.69273335]
[1762110479936,4.829e-05,110380.0,110370.0,0.32252226]
[1762110480166,0.59355641,110380.0,110370.0,0.01254132]
[1762110480350,0.93536853,110380.0,110370.0,0.01254132]
[1762110480558,0.9679834,110380.0,110370.0,0.01254132]
[1762110481203,0.9679834,110380.0,110370.0,0.00854132]
[1762110481204,1.02839455,110380.0,110370.0,0.00854132]
[1762110481360,1.02939455,110380.0,110370.0,0.00154132]
[1762110481532,1.03239455,110380.0,110370.0,0.00154132]
[1762110481974,1.00816568,110380.0,110370.0,0.00154132]
[1762110482173,0.97555081,110380.0,110370.0,0.00154132]
[1762110486093,1.46819578,110380.0,110370.0,0.00154132]
[1762110486310,1.35391562,110380.0,110370.0,0.00154132]
[1762110486511,1.38114842,110380.0,110370.0,0.00154132]
[1762110487609,1.40537729,110380.0,110370.0,0.00154132]
[1762110487814,1.4542996,110380.0,110370.0,0.00154132]
[1762110488019,1.43863232,110380.0,110370.0,0.00154132]
[1762110489148,1.56097461,110380.0,110370.0,0.00154132]
[1762110489381,1.45420801,110380.0,110370.0,0.00154132]
[1762110492374,1.4052857,110380.0,110370.0,0.00154132]
[1762110496288,1.42964195,110380.0,110370.0,0.00154132]
[1762110497288,1.4052857,110380.0,110370.0,0.00154132]
[1762110498733,0.66486352,110380.0,110370.0,0.00154132]
[1762110498939,1.4052857,110380.0,110370.0,0.00154132]
[1762110500562,1.42964161,110380.0,110370.0,0.00154132]
[1762110500821,1.05943052,110380.0,110370.0,0.00154132]
[1762110502014,0.66499056,110380.0,110370.0,0.00154132]
[1762110502217,1.03520165,110380.0,110370.0,0.00154132]
[1762110503813,1.12502066,110380.0,110370.0,0.00154132]
[1762110504159,1.03520165,110380.0,110370.0,0.00154132]
[1762110504807,0.66499056,110380.0,110370.0,0.00154132]
[1762110505029,1.03520165,110380.0,110370.0,0.00154132]
[1762110507422,1.01084574,110380.0,110370.0,0.00154132]
[1762110508252,1.05976805,110380.0,110370.0,0.00154132]
[1762110508452,1.08399692,110380.0,110370.0,0.00154132]
[1762110509211,1.10095605,110380.0,110370.0,0.00154132]
[1762110509432,1.10099592,110380.0,110370.0,0.00154132]
[1762110509924,1.06481364,110380.0,110370.0,0.00154132]
[1762110510266,1.06481446,110380.0,110370.0,0.00154132]
[1762110511511,1.03225131,110380.0,110370.0,0.00154132]
[1762110512577,1.06843359,110380.0,110370.0,0.00154132]
[1762110512782,1.1582526,110380.0,110370.0,0.00154132]
[1762110515272,1.10933029,110380.0,110370.0,0.00154132]
[1762110515476,1.01951128,110380.0,110370.0,0.00154132]
[1762110515749,1.06841022,110380.0,110370.0,0.00154132]
[1762110516283,1.01951128,110380.0,110370.0,0.00154132]
[1762110516488,1.38972237,110380.0,110370.0,0.00154132]
[1762110518660,1.01951128,110380.0,110370.0,0.00154132]
[1762110521806,0.64930019,110380.0,110370.0,0.00154132]
[1762110522006,0.99528241,110380.0,110370.0,0.00154132]
[1762110523482,1.04418992,110380.0,110370.0,0.00154132]
[1762110524465,1.41479689,110380.0,110370.0,0.00154132]
[1762110525118,1.43452416,110380.0,110370.0,0.00154132]
[1762110525482,1.43902576,110380.0,110370.0,0.00154132]
[1762110525684,1.00820558,110380.0,110370.0,0.01788132]
[1762110526113,1.37861461,110380.0,110370.0,0.19908998]
[1762110526366,1.39426,110380.0,110370.0,0.19908998]
[1762110527255,1.02385097,110380.0,110370.0,0.19908998]
[1762110527868,1.02385097,110380.0,110370.0,0.01788132]
[1762110528075,1.02385097,110380.0,110370.0,0.19908998]
[1762110528938,1.02385097,110380.0,110370.0,0.01788132]
[1762110529144,1.39426,110380.0,110370.0,0.00154132]
[1762110529715,1.39426,110380.0,110370.0,0.18274998]
[1762110530119,1.34535249,110380.0,110370.0,0.18274998]
[1762110531113,1.34535249,110380.0,110370.0,0.21054998]
[1762110531493,1.34535249,110380.0,110370.0,0.02934132]
[1762110531958,1.39426,110380.0,110370.0,0.02934132]
[1762110533063,1.39426,110380.0,110370.0,0.01300132]
[1762110533259,1.34535249,110380.0,110370.0,0.00154132]
[1762110533429,1.39426,110380.0,110370.0,0.00154132]
[1762110534830,1.3670272,110380.0,110370.0,0.00154132]
[1762110535184,1.34234856,110380.0,110370.0,0.00154132]
[1762110535384,1.39125607,110380.0,110370.0,0.00154132]
[1762110538202,1.34234856,110380.0,110370.0,0.00154132]
[1762110541405,1.31811969,110380.0,110370.0,0.00154132]
[1762110548783,1.3670272,110380.0,110370.0,0.00154132]
[1762110550350,1.38401348,110380.0,110370.0,0.00154132]
[1762110551103,1.38401504,110380.0,110370.0,0.00154132]
[1762110551310,1.3670272,110380.0,110370.0,0.00154132]
[1762110552108,1.38401694,110380.0,110370.0,0.00154132]
[1762110553665,1.72182063,110380.0,110370.0,0.00154132]
[1762110554073,1.7460495,110380.0,110370.0,0.00154132]
[1762110554707,1.78223178,110380.0,110370.0,0.00154132]
[1762110554919,1.80946597,110380.0,110370.0,0.00154132]
[1762110557529,1.41482807,110380.0,110370.0,0.00154132]
[1762110564178,1.41482636,110380.0,110370.0,0.00154132]
[1762110566046,1.35140989,110380.0,110370.0,0.00154132]
[1762110567416,1.33442186,110380.0,110370.0,0.00154132]
[1762110582834,1.33454127,110380.0,110370.0,0.00154132]
[1762110584536,0.96413459,110380.0,110370.0,0.00154132]
[1762110593242,0.96413459,110380.0,110370.0,0.01776132]
[1762110593441,0.99676453,110380.0,110370.0,0.01776132]
[1762110593686,0.96413459,110380.0,110370.0,0.00154132]
[1762110595470,0.99136625,110380.0,110370.0,0.00154132]
[1762110598783,0.97179108,110380.0,110370.0,0.00154132]
[1762110598999,0.99136973,110380.0,110370.0,0.00154132]
[1762110604050,1.0240023,110380.0,110370.0,0.00154132]
[1762110604303,0.99136973,110380.0,110370.0,0.00154132]
[1762110611069,0.99136973,110380.0,110370.0,0.02974132]
[1762110611482,0.99136973,110380.0,110370.0,0.05435395]
[1762110611685,1.02401766,110380.0,110370.0,0.05435395]
[1762110611889,1.02401766,110380.0,110370.0,0.02615395]
[1762110612093,0.99136973,110380.0,110370.0,0.00154132]
[1762110613131,1.02401721,110380.0,110370.0,0.00154132]
[1762110613355,0.99136973,110380.0,110370.0,0.00154132]
[1762110614168,0.84282482,110380.0,110370.0,0.02974132]
[1762110614412,0.60469817,110380.0,110370.0,0.25286084]
[1762110614617,0.62918562,110380.0,110370.0,0.27928556]
[1762110615437,0.999597,110380.0,110370.0,0.27928556]
[1762110615648,0.62918562,110380.0,110370.0,0.27928556]
[1762110617231,0.62918562,110380.0,110370.0,0.23473998]
[1762110618091,0.41534605,110380.0,110370.0,0.23473998]
[1762110619343,0.59653829,110380.0,110370.0,0.23473998]
[1762110621091,0.41534605,110380.0,110370.0,0.23473998]
[1762110621338,0.59653829,110380.0,110370.0,0.23473998]
[1762110622232,0.59653829,110380.0,110370.0,0.27747348]
[1762110623676,0.41534605,110380.0,110370.0,0.27747348]
[1762110623864,0.59653829,110380.0,110370.0,0.27747348]
[1762110625263,0.59653829,110380.0,110370.0,0.23473998]
[1762110629916,0.41534605,110380.0,110370.0,0.23473998]
[1762110630175,0.59653829,110380.0,110370.0,0.23473998]
[1762110631557,0.41534605,110380.0,110370.0,0.23473998]
[1762110635578,0.59653829,110380.0,110370.0,0.23473998]
[1762110635813,0.41534605,110380.0,110370.0,0.23473998]
[1762110636474,0.59653829,110380.0,110370.0,0.23473998]
[1762110637564,0.41534605,110380.0,110370.0,0.23473998]
[1762110637794,0.59653829,110380.0,110370.0,0.23473998]
[1762110638870,0.41534605,110380.0,110370.0,0.23473998]
[1762110644339,0.59653829,110380.0,110370.0,0.23473998]
[1762110644778,0.41534605,110380.0,110370.0,0.23473998]
[1762110646408,0.78563112,110380.0,110370.0,0.23473998]
[1762110652452,0.74156502,110380.0,110370.0,0.23473998]
[1762110652677,0.78565128,110380.0,110370.0,0.23473998]
[1762110657506,0.96684352,110380.0,110370.0,0.23473998]
[1762110657721,0.78565128,110380.0,110370.0,0.23473998]
[1762110660552,0.78565364,110380.0,110370.0,0.23473998]
[1762110662901,0.41536857,110380.0,110370.0,0.23473998]
[1762110663108,0.41536857,110380.0,110370.0,0.31450198]
[1762110663315,0.04813691,110380.0,110370.0,0.68478705]
[1762110663657,0.02364323,110380.0,110370.0,0.68478705]
[1762110664110,0.02264323,110380.0,110370.0,0.68478705]
[1762110664321,0.02264323,110380.0,110370.0,0.68678705]
[1762110664522,0.00304829,110380.0,110370.0,0.68678705]
[1762110664727,4.829e-05,110380.0,110370.0,0.68678705]
[1762110664932,4.829e-05,110380.0,110370.0,0.69078705]
[1762110670208,4.829e-05,110380.0,110370.0,0.32050198]
[1762110670412,4.829e-05,110380.0,110370.0,0.69078705]
[1762110677263,4.829e-05,110380.0,110370.0,0.32050198]
[1762110677443,4.829e-05,110380.0,110370.0,0.69078705]
[1762110678624,4.829e-05,110380.0,110370.0,0.32050198]
[1762110678824,4.829e-05,110380.0,110370.0,0.69078705]
[1762110679227,4.829e-05,110380.0,110370.0,0.32050198]
[1762110681173,4.829e-05,110380.0,110370.0,0.69078705]
[1762110682542,4.829e-05,110380.0,110370.0,0.32050198]
[1762110684850,4.829e-05,110380.0,110370.0,0.69078705]
[1762110691402,4.829e-05,110380.0,110370.0,0.32050198]
[1762110691582,4.829e-05,110380.0,110370.0,0.69078705]
[1762110704712,0.02727338,110380.0,110370.0,0.69078705]
[1762110707379,0.04683095,110380.0,110370.0,0.69078705]
[1762110708411,0.04683095,110380.0,110370.0,0.32050198]
[1762110710483,0.04683095,110380.0,110370.0,0.03574132]
[1762110710484,0.6797892,110380.0,110370.0,0.03574132]
[1762110710627,0.6797892,110380.0,110370.0,0.00754132]
[1762110710628,1.04423616,110380.0,110370.0,0.00754132]
[1762110711054,1.07688349,110380.0,110370.0,0.00754132]
[1762110711240,1.04423616,110380.0,110370.0,0.00754132]
[1762110711604,1.06846692,110380.0,110370.0,0.00154132]
[1762110718735,1.04423616,110380.0,110370.0,0.00154132]
[1762110719771,1.07688349,110380.0,110370.0,0.00154132]
[1762110720766,1.07988349,110380.0,110370.0,0.00154132]
[1762110721042,1.05543653,110380.0,110370.0,0.00154132]
[1762110721231,1.07988058,110380.0,110370.0,0.00154132]
[1762110721432,1.08088058,110380.0,110370.0,0.00154132]
[1762110722671,1.08066729,110380.0,110370.0,0.00154132]
[1762110723083,1.08087601,110380.0,110370.0,0.00154132]
[1762110724904,1.04822868,110380.0,110370.0,0.00154132]
[1762110726644,0.6779881,110380.0,110370.0,0.00154132]
[1762110726923,1.04822868,110380.0,110370.0,0.00154132]
[1762110732228,1.08087601,110380.0,110370.0,0.00154132]
[1762110736554,1.05643653,110380.0,110370.0,0.00154132]
[1762110737972,1.05643653,110380.0,110370.0,0.00116132]
[1762110739322,1.10534404,110380.0,110370.0,0.00116132]
[1762110749060,1.19516305,110380.0,110370.0,0.00116132]
[1762110751498,1.16251572,110380.0,110370.0,0.00116132]
[1762110751718,1.10533904,110380.0,110370.0,0.02869132]
[1762110753762,1.05643153,110380.0,110370.0,0.02869132]
[1762110753983,1.10533904,110380.0,110370.0,0.00116132]
[1762110754635,1.10533904,110380.0,110370.0,0.01652132]
[1762110755113,0.73509846,110380.0,110370.0,0.02869132]
[1762110755339,1.10533904,110380.0,110370.0,0.02869132]
[1762110756454,1.05643153,110380.0,110370.0,0.02869132]
[1762110756936,1.10533904,110380.0,110370.0,0.02869132]
[1762110760251,1.10533904,110380.0,110370.0,0.05135132]
[1762110761363,0.68619095,110380.0,110370.0,0.23255998]
[1762110761587,1.05643153,110380.0,110370.0,0.23255998]
[1762110761805,0.68619095,110380.0,110370.0,0.23255998]
[1762110762493,0.7106731,110380.0,110370.0,0.23255998]
[1762110763446,0.49683853,110380.0,110370.0,0.23255998]
[1762110763663,0.67803077,110380.0,110370.0,0.23255998]
[1762110764100,0.49683853,110380.0,110370.0,0.23255998]
[1762110765009,0.67803077,110380.0,110370.0,0.23255998]
[1762110765424,0.49683853,110380.0,110370.0,0.23255998]
[1762110767627,0.49683853,110380.0,110370.0,0.27509445]
[1762110767832,0.49683853,110380.0,110370.0,0.23249898]
[1762110768472,0.86713846,110380.0,110370.0,0.23249898]
[1762110769058,1.0483307,110380.0,110370.0,0.23249898]
[1762110769264,0.86713846,110380.0,110370.0,0.23249898]
[1762110769460,1.0483307,110380.0,110370.0,0.23249898]
[1762110770164,0.86713846,110380.0,110370.0,0.23249898]
[1762110771390,0.67803077,110380.0,110370.0,0.23249898]
[1762110771796,0.49683853,110380.0,110370.0,0.23249898]
[1762110772160,0.86713846,110380.0,110370.0,0.23249898]
[1762110773147,0.49683853,110380.0,110370.0,0.23249898]
[1762110773349,0.86713846,110380.0,110370.0,0.23249898]
[1762110775268,0.49683853,110380.0,110370.0,0.23249898]
[1762110775668,0.86713846,110380.0,110370.0,0.23249898]
[1762110780306,1.0483307,110380.0,110370.0,0.23249898]
[1762110781276,0.49683853,110380.0,110370.0,0.23249898]
[1762110781469,0.86713846,110380.0,110370.0,0.23249898]
[1762110781863,1.0483307,110380.0,110370.0,0.23249898]
[1762110782363,0.86713846,110380.0,110370.0,0.23249898]
[1762110783013,1.0483307,110380.0,110370.0,0.23249898]
[1762110783797,0.86713846,110380.0,110370.0,0.23249898]
[1762110784211,1.0483307,110380.0,110370.0,0.23249898]
[1762110785617,0.86713846,110380.0,110370.0,0.23249898]
[1762110786060,1.0483307,110380.0,110370.0,0.23249898]
[1762110787413,0.86713846,110380.0,110370.0,0.23249898]
[1762110787613,1.0483307,110380.0,110370.0,0.23249898]
[1762110789178,0.86713846,110380.0,110370.0,0.23249898]
[1762110790388,1.0483307,110380.0,110370.0,0.23249898]
[1762110791577,1.02110561,110380.0,110370.0,0.23249898]
[1762110792456,0.83991337,110380.0,110370.0,0.23249898]
[1762110792669,1.02110561,110380.0,110370.0,0.23249898]
[1762110798772,0.04808801,110380.0,110370.0,0.68241827]
[1762110798981,0.02360586,110380.0,110370.0,0.68241827]
[1762110799608,0.00104829,110380.0,110370.0,0.68241827]
[1762110800403,0.00204829,110380.0,110370.0,0.68241827]
[1762110800855,0.00204829,110380.0,110370.0,0.31211834]
[1762110801903,4.829e-05,110380.0,110370.0,0.31211834]
[1762110802111,0.00204829,110380.0,110370.0,0.31211834]
[1762110817425,0.18324053,110380.0,110370.0,0.31211834]
[1762110817627,0.2027981,110380.0,110370.0,0.31211834]
[1762110817839,0.37234822,110380.0,110370.0,0.31211834]
[1762110818049,0.39191244,110380.0,110370.0,0.31211834]
[1762110819284,0.37234822,110380.0,110370.0,0.31211834]
[1762110821453,0.02161596,110380.0,110370.0,0.31211834]
[1762110821677,0.00204829,110380.0,110370.0,0.31211834]
[1762110823971,0.18324053,110380.0,110370.0,0.31211834]
[1762110824306,0.2028082,110380.0,110370.0,0.31211834]
[1762110826702,0.57310813,110380.0,110370.0,0.31211834]
[1762110827124,0.2028082,110380.0,110370.0,0.31211834]
[1762110827704,0.02161596,110380.0,110370.0,0.31211834]
[1762110827918,0.18324053,110380.0,110370.0,0.31211834]
[1762110828088,0.2028082,110380.0,110370.0,0.31211834]
[1762110834805,0.02161596,110380.0,110370.0,0.31211834]
[1762110835017,0.18324053,110380.0,110370.0,0.31211834]
[1762110835210,0.2028082,110380.0,110370.0,0.31211834]
[1762110837247,0.2028082,110380.0,110370.0,0.23249898]
[1762110839415,0.57308571,110380.0,110370.0,0.02863032]
[1762110839594,0.93756786,110380.0,110370.0,0.02863032]
[1762110840785,0.93756786,110380.0,110370.0,0.00110032]
[1762110841213,0.96479666,110380.0,110370.0,0.00110032]
[1762110842083,1.05461567,110380.0,110370.0,0.00110032]
[1762110842907,0.96479666,110380.0,110370.0,0.00110032]
[1762110846829,0.9646068,110380.0,110370.0,0.00110032]
[1762110849235,0.9646068,110380.0,110370.0,0.01614032]
[1762110849462,0.59432929,110380.0,110370.0,0.23287898]
[1762110849696,0.9646068,110380.0,110370.0,0.23287898]
[1762110849895,0.9646068,110380.0,110370.0,0.27550637]
[1762110850457,0.9646068,110380.0,110370.0,0.23287898]
[1762110851215,0.96457531,110380.0,110370.0,0.23287898]
[1762110852109,0.94012068,110380.0,110370.0,0.23287898]
[1762110856170,0.94012068,110380.0,110370.0,0.01719032]
[1762110856375,0.94012068,110380.0,110370.0,0.02919032]
[1762110856580,0.96457531,110380.0,110370.0,0.23326898]
[1762110857324,0.94012068,110380.0,110370.0,0.23326898]
[1762110859307,0.94012068,110380.0,110370.0,0.02919032]
[1762110860161,0.94012068,110380.0,110370.0,0.21039898]
[1762110860573,0.94012068,110380.0,110370.0,0.02919032]
[1762110860778,0.94012068,110380.0,110370.0,0.21039898]
[1762110861793,0.93974092,110380.0,110370.0,0.21039898]
[1762110867006,0.93974092,110380.0,110370.0,0.00110032]
[1762110867215,0.96419555,110380.0,110370.0,0.00110032]
[1762110869810,0.99683788,110380.0,110370.0,0.00110032]
[1762110879277,0.96419555,110380.0,110370.0,0.00110032]
[1762110882894,0.96400565,110380.0,110370.0,0.00110032]
[1762110886136,1.05382466,110380.0,110370.0,0.00110032]
[1762110886387,0.96400565,110380.0,110370.0,0.00110032]
[1762110892428,1.33450952,110380.0,110370.0,0.00110032]
[1762110895355,1.36715185,110380.0,110370.0,0.00110032]
[1762110895757,1.34269722,110380.0,110370.0,0.00110032]
[1762110895959,1.39160473,110380.0,110370.0,0.00110032]
[1762110897150,1.39031596,110380.0,110370.0,0.00110032]
[1762110897409,1.39431596,110380.0,110370.0,0.00110032]
[1762110898018,1.39131596,110380.0,110370.0,0.00110032]
[1762110898181,1.39431596,110380.0,110370.0,0.00110032]
[1762110899337,1.34540845,110380.0,110370.0,0.00110032]
[1762110899518,1.39431596,110380.0,110370.0,0.00110032]
[1762110901881,1.39429538,110380.0,110370.0,0.00110032]
[1762110902082,1.76468607,110380.0,110370.0,0.00110032]
[1762110902286,1.85450508,110380.0,110370.0,0.00110032]
[1762110902474,1.82188333,110380.0,110370.0,0.00110032]
[1762110904875,1.83850191,110380.0,110370.0,0.00110032]
[1762110905237,1.85806949,110380.0,110370.0,0.00110032]
[1762110905998,1.76825048,110380.0,110370.0,0.00110032]
[1762110912820,1.80084272,110380.0,110370.0,0.00110032]
[1762110915321,1.76825048,110380.0,110370.0,0.00110032]
[1762110915527,1.76525048,110380.0,110370.0,0.00110032]
[1762110915705,1.76425048,110380.0,110370.0,0.00110032]
[1762110915841,1.77425048,110380.0,110370.0,0.00110032]
[1762110916270,1.76725048,110380.0,110370.0,0.00110032]
[1762110916675,1.77425048,110380.0,110370.0,0.00110032]
[1762110916882,1.80685356,110380.0,110370.0,0.00110032]
[1762110918346,1.77425048,110380.0,110370.0,0.00110032]
[1762110923949,2.83651504,110380.0,110370.0,0.00110032]
[1762110924279,2.83651504,110380.0,110330.0,0.01283]
[1762110924280,0.18125793,110340.0,110330.0,0.03734]
[1762110924519,0.57430586,110340.0,110330.0,0.01283]
[1762110924791,0.92203931,110340.0,110330.0,0.02896]
[1762110925060,0.96884476,110340.0,110330.0,0.01283]
[1762110925349,1.30884476,110340.0,110330.0,0.0004]
[1762110925578,1.30884476,110340.0,110330.0,0.00054508]
[1762110925839,1.33330484,110340.0,110330.0,0.00154508]
[1762110926094,1.33330484,110340.0,110330.0,0.00254508]
[1762110926331,1.30884476,110340.0,110330.0,0.00254508]
[1762110926568,1.30884476,110340.0,110330.0,0.00154508]
[1762110926781,1.30884476,110340.0,110330.0,0.01767508]
[1762110927212,1.30884476,110340.0,110330.0,0.01667508]
[1762110927641,1.30884476,110340.0,110330.0,0.04017563]
[1762110927867,1.30984476,110340.0,110330.0,0.04717563]
[1762110928522,1.30984476,110340.0,110330.0,0.03104563]
[1762110928942,1.30984476,110340.0,110330.0,0.04717563]